fUSD/lending_fUSD_20241105
["ID","MTS","AMOUNT","RATE_DAILY","PERIOD"]
[341348147,1730818342527,-312.3,0.0003352,2]
[341348148,1730818342536,-152.0,0.00033649,10]
[341348149,1730818342546,-959.51553359,0.00033698,2]
[341348150,1730818342555,-642.50588689,0.00033698,2]
[341348151,1730818342729,-2202.58806926,0.00033698,2]
[341348152,1730818342739,-1276.89,0.00033698,2]
[341348153,1730818342749,-524.72622253,0.00033698,2]
[341348154,1730818342759,-1325.31538737,0.00033698,2]
[341348155,1730818342768,-652.37304354,0.00033698,2]
[341348156,1730818342779,-1213.91513107,0.00033698,2]
[341348157,1730818342790,-543.8676116,0.00033698,2]
[341348158,1730818342801,-710.26729134,0.00033698,2]
[341348159,1730818342811,-596.55656847,0.00033698,2]
[341348160,1730818342820,-1031.35096661,0.00033698,2]
[341348161,1730818342830,-1810.21268338,0.00033698,2]
[341348162,1730818342839,-498.08201101,0.00033698,2]
[341348163,1730818342848,-1006.56635629,0.00033698,2]
[341348164,1730818342858,-1532.92590937,0.00033698,2]
[341348165,1730818342867,-1172.60409859,0.00033698,2]
[341348166,1730818342884,-950.78058619,0.00033698,2]
[341348167,1730818342893,-566.44159057,0.00033698,2]
[341348168,1730818342903,-1150.43971592,0.00033698,2]
[341348169,1730818342912,-1385.29340949,0.00033698,2]
[341348170,1730818342922,-1053.0656855,0.00033698,2]
[341348171,1730818342931,-2449.3963204,0.00033698,2]
[341348172,1730818342940,-551.94408057,0.00033698,2]
[341348173,1730818342950,-1152.83299478,0.00033698,2]
[341348174,1730818342960,-505.77996818,0.00033698,2]
[341348175,1730818342970,-1169.34666735,0.00033698,2]
[341348176,1730818342979,-1981.30385373,0.00033698,2]
[341348177,1730818342988,-1123.01325468,0.00033698,2]
[341348178,1730818342998,-667.8416753,0.00033698,2]
[341348179,1730818343008,-765.383116,0.00033698,2]
[341348180,1730818343018,-1179.46175072,0.00033698,2]
[341348181,1730818343027,-746.01050804,0.00033698,2]
[341348182,1730818343036,-1649.88,0.00033698,120]
[341348183,1730818343046,-1138.75110718,0.00033698,2]
[341348184,1730818343055,-1546.51254251,0.00033698,2]
[341348185,1730818343065,-1799.32315274,0.00033698,2]
[341348186,1730818343075,-882.84874655,0.00033698,2]
[341348187,1730818343084,-918.06232155,0.00033698,2]
[341348188,1730818343094,-716.14085967,0.00033698,2]
[341348189,1730818343103,-1464.77085793,0.00033698,2]
[341348190,1730818343112,-821.36219436,0.00033698,2]
[341348191,1730818343125,-561.28413832,0.00033698,2]
[341348192,1730818343135,-2488.37141885,0.00033698,2]
[341348193,1730818343145,-1277.62059294,0.00033698,2]
[341348194,1730818343156,-789.21347363,0.00033698,2]
[341348195,1730818343167,-1983.47241235,0.00033698,2]
[341348196,1730818343176,-1319.61317616,0.00033698,2]
[341348197,1730818343187,-770.24729271,0.00033698,2]
[341348198,1730818343197,-933.5285603,0.00033698,2]
[341348199,1730818343207,-1484.97876141,0.00033698,2]
[341348200,1730818343217,-769.66,0.00033698,2]
[341348201,1730818343227,-2097.34185322,0.00033698,2]
[341348202,1730818343237,-893.29011389,0.00033698,2]
[341348203,1730818343247,-706.72267974,0.00033698,2]
[341348204,1730818343261,-626.41583335,0.00033698,2]
[341348205,1730818343271,-1129.26560323,0.00033698,2]
[341348206,1730818343281,-1181.58110997,0.00033698,2]
[341348207,1730818343290,-1106.08053842,0.00033698,2]
[341348208,1730818343300,-1949.37199168,0.00033698,2]
[341348209,1730818343310,-1772.2045445,0.00033698,2]
[341348210,1730818343320,-2148.96240247,0.00033698,2]
[341348211,1730818343331,-899.35346584,0.00033698,2]
[341348212,1730818343340,-2651.17400287,0.00033698,2]
[341348213,1730818343350,-729.63609773,0.00033698,2]
[341348214,1730818343360,-891.91468345,0.00033698,2]
[341348215,1730818343375,-1337.94194593,0.00033698,2]
[341348216,1730818343385,-1628.54405937,0.00033698,2]
[341348217,1730818343395,-1340.79886916,0.00033698,2]
[341348218,1730818343404,-1205.20148615,0.00033698,2]
[341348219,1730818343414,-672.10786391,0.00033698,2]
[341348220,1730818343423,-2625.82221663,0.00033698,2]
[341348221,1730818343433,-1052.96141299,0.00033698,2]
[341348222,1730818343444,-863.08852527,0.00033698,2]
[341348223,1730818343454,-1135.05,0.00033698,2]
[341348224,1730818343463,-713.91771675,0.00033698,2]
[341348225,1730818343474,-1190.41325471,0.00033698,2]
[341348226,1730818343484,-562.08791596,0.00033698,2]
[341348227,1730818343494,-1258.96673819,0.00033698,2]
[341348228,1730818343504,-708.46174852,0.00033698,2]
[341348229,1730818343515,-719.7815107,0.00033698,2]
[341348230,1730818343525,-530.40047165,0.00033698,2]
[341348231,1730818343535,-534.1984343,0.00033698,2]
[341348232,1730818343544,-1233.36419412,0.00033698,2]
[341348233,1730818343553,-1568.55061711,0.00033698,2]
[341348234,1730818343563,-1594.20142354,0.00033698,2]
[341348235,1730818343573,-1606.86354757,0.00033698,2]
[341348236,1730818343584,-1115.11405206,0.00033698,2]
[341348237,1730818343594,-1019.56096898,0.00033698,2]
[341348238,1730818343604,-1345.79309429,0.00033698,2]
[341348239,1730818343614,-573.23562509,0.00033698,2]
[341348240,1730818343627,-1308.07521239,0.00033698,2]
[341348241,1730818343636,-998.00955467,0.00033698,2]
[341348242,1730818343646,-510.31083166,0.00033698,2]
[341348243,1730818343655,-619.25556308,0.00033698,2]
[341348244,1730818343665,-654.36420253,0.00033698,2]
[341348245,1730818343675,-859.26496391,0.00033698,2]
[341348246,1730818343684,-685.59711345,0.00033698,2]
[341348247,1730818343693,-804.67790667,0.00033698,2]
[341348248,1730818343703,-1490.85002759,0.00033698,2]
[341348249,1730818343713,-2778.38647369,0.00033698,2]
[341348250,1730818343722,-991.81950276,0.00033698,2]
[341348251,1730818343732,-1058.07742022,0.00033698,2]
[341348252,1730818343741,-1286.92690528,0.00033698,2]
[341348253,1730818343750,-10560.71998474,0.00033698,2]
[341348254,1730818343759,-512.70220965,0.00033698,2]
[341348255,1730818343769,-882.40039684,0.00033698,2]
[341348256,1730818343778,-574.71,0.00033698,2]
[341348257,1730818343788,-2024.22662276,0.00033698,2]
[341348258,1730818343797,-2459.82704029,0.00033698,2]
[341348259,1730818343806,-522.88062933,0.00033698,2]
[341348260,1730818343815,-540.08,0.00033698,2]
[341348261,1730818343824,-832.24651085,0.00033698,2]
[341348262,1730818343834,-528.83981194,0.00033698,2]
[341348263,1730818343843,-577.10027209,0.00033698,2]
[341348264,1730818343853,-1143.20717231,0.00033698,2]
[341348265,1730818343863,-1759.87658433,0.00033698,2]
[341348266,1730818343874,-2134.8993577,0.00033698,2]
[341348267,1730818343884,-1180.68535666,0.00033698,2]
[341348268,1730818343893,-669.88358277,0.00033698,2]
[341348269,1730818343902,-2610.91203235,0.00033698,2]
[341348270,1730818343925,-165.73365797,0.00033698,2]
[341348271,1730818343941,-812.92020113,0.00033698,2]
[341348272,1730818343961,-2008.97597673,0.00033698,2]
[341348273,1730818343982,-839.78796848,0.00033698,2]
[341348274,1730818344000,-2029.73426754,0.00033698,2]
[341348275,1730818344017,-828.61875717,0.00033698,2]
[341348276,1730818344033,-1273.27331378,0.00033698,2]
[341348277,1730818344050,-590.47964074,0.00033698,2]
[341348278,1730818344068,-1210.83322867,0.00033698,2]
[341348279,1730818344091,-1114.87514294,0.00033698,2]
[341348280,1730818344103,-2727.62926633,0.00033698,2]
[341348281,1730818344125,-12148.53563246,0.00033698,2]
[341348282,1730818344141,-2229.87564837,0.00033698,2]
[341348283,1730818344157,-511.48228736,0.00033698,2]
[341348284,1730818344173,-2291.2268634,0.00033698,2]
[341348285,1730818344190,-997.20706772,0.00033698,2]
[341348286,1730818344206,-800.26928177,0.00033698,2]
[341348287,1730818344222,-1162.41,0.00033698,2]
[341348288,1730818344240,-3281.29342928,0.00033698,2]
[341348289,1730818344257,-618.51562677,0.00033698,2]
[341348290,1730818344273,-20453.15436965,0.00033698,2]
[341348291,1730818344289,-839.58983868,0.00033698,2]
[341348292,1730818344305,-694.15213024,0.00033698,2]
[341348293,1730818344321,-1597.41871638,0.00033698,2]
[341348294,1730818344337,-4040.43261925,0.00033698,2]
[341348295,1730818344353,-8586.32,0.00033698,2]
[341348296,1730818344369,-2313.86490868,0.00033698,2]
[341348297,1730818344387,-1073.96707796,0.00033698,2]
[341348298,1730818344402,-558.68151488,0.00033698,2]
[341348299,1730818344418,-5774.22749535,0.00033698,2]
[341348300,1730818344434,-1029.58061033,0.00033698,2]
[341348301,1730818344450,-673.64657288,0.00033698,2]
[341348302,1730818344466,-813.30958415,0.00033698,2]
[341348303,1730818344482,-1675.18132188,0.00033698,2]
[341348304,1730818344498,-4168.74854436,0.00033698,2]
[341348305,1730818344514,-2221.77670189,0.00033698,2]
[341348306,1730818344530,-623.10216806,0.00033698,2]
[341348307,1730818344546,-722.44,0.00033698,2]
[341348308,1730818344561,-728.63666614,0.00033698,2]
[341348309,1730818344577,-800.80272958,0.00033698,2]
[341348310,1730818344594,-1037.64551594,0.00033698,2]
[341348311,1730818344609,-4458.90487125,0.00033698,2]
[341348312,1730818344625,-6100.58462199,0.00033698,2]
[341348313,1730818344640,-1685.03115071,0.00033698,2]
[341348314,1730818344655,-746.39,0.00033698,2]
[341348315,1730818344670,-860.73,0.00033698,2]
[341348316,1730818344686,-1239.75217005,0.00033698,2]
[341348317,1730818344703,-2801.01032275,0.00033698,2]
[341348318,1730818344720,-3438.36369895,0.00033698,2]
[341348319,1730818344737,-580.31115592,0.00033698,2]
[341348320,1730818344753,-2595.46841534,0.00033698,2]
[341348321,1730818344769,-847.82461747,0.00033698,2]
[341348322,1730818344784,-3999.09,0.00033698,2]
[341348323,1730818344800,-2840.94790153,0.00033698,2]
[341348324,1730818344814,-349.38763547,0.00033698,2]
[341348325,1730818344830,-14923.2024221,0.00033698,2]
[341348326,1730818344846,-1420.22425815,0.00033698,2]
[341348327,1730818344863,-7967.51569763,0.00033698,2]
[341348328,1730818344879,-2786.35772493,0.00033698,2]
[341348329,1730818344894,-2634.81230457,0.00033698,2]
[341348330,1730818344908,-4963.19540141,0.00033698,2]
[341348331,1730818344923,-1373.86885736,0.00033698,2]
[341348332,1730818344938,-3175.24941086,0.00033698,2]
[341348333,1730818344953,-1485.77240509,0.00033698,2]
[341348334,1730818344968,-8715.13612201,0.00033698,2]
[341348335,1730818344983,-356.51780969,0.00033698,2]
[341348336,1730818344998,-1668.58157509,0.00033698,2]
[341348337,1730818345013,-580.24839574,0.00033698,2]
[341348338,1730818345027,-2394.95815121,0.00033698,2]
[341348339,1730818345042,-3537.450079,0.00033698,2]
[341348340,1730818345056,-870.41820377,0.00033698,2]
[341348341,1730818345071,-812.191186,0.00033698,2]
[341348342,1730818345087,-641.58993211,0.00033698,2]
[341348343,1730818345101,-519.63724193,0.00033698,2]
[341348344,1730818345115,-1061.66354469,0.00033698,2]
[341348345,1730818345133,-5273.4134,0.00033698,2]
[341348346,1730818345147,-2904.89509964,0.00033698,2]
[341348347,1730818345162,-332.04332412,0.00033698,2]
[341348348,1730818345177,-22457.73750777,0.00033698,2]
[341348349,1730818345192,-543.19136842,0.00033698,2]
[341348350,1730818345206,-621.32675699,0.00033698,2]
[341348351,1730818345221,-3230.94626411,0.00033698,2]
[341348352,1730818345236,-851.78654681,0.00033698,2]
[341348353,1730818345250,-862.26910584,0.00033698,2]
[341348354,1730818345266,-2720.94127237,0.00033698,2]
[341348355,1730818345283,-517.38735864,0.00033698,2]
[341348356,1730818345298,-638.22073234,0.00033698,2]
[341348357,1730818345314,-947.25670279,0.00033698,2]
[341348358,1730818345328,-2073.12571217,0.00033698,2]
[341348359,1730818345343,-3625.92038748,0.00033698,2]
[341348360,1730818345364,-2681.57802933,0.00033698,2]
[341348361,1730818345384,-1864.47230087,0.00033698,2]
[341348362,1730818345404,-738.00793759,0.00033698,2]
[341348363,1730818345420,-1021.40181525,0.00033698,2]
[341348364,1730818345436,-1000.0,0.00033699,2]
[341348365,1730818345451,-996.44,0.0003379,2]
[341348366,1730818345467,-1649.88,0.00033972,120]
[341348367,1730818345483,-1000.0,0.00033973,2]
[341348368,1730818345498,-4072.72915129,0.00034,2]
[341348369,1730818345513,-2641.49737131,0.00034,120]
[341348370,1730818345529,-500.0,0.00034,30]
[341348371,1730818345544,-532.45964944,0.00034,30]
[341348372,1730818345560,-500.0,0.00034,30]
[341348373,1730818345575,-830.53894671,0.00034,30]
[341348374,1730818345591,-500.0,0.00034,30]
[341348375,1730818345605,-530.56192374,0.00034,30]
[341348376,1730818345620,-500.0,0.00034,30]
[341348377,1730818345637,-500.0,0.00034,30]
[341348378,1730818345653,-500.0,0.00034,30]
[341348379,1730818345667,-643.73131658,0.00034,30]
[341348380,1730818345682,-500.0,0.00034,30]
[341348381,1730818345696,-500.0,0.00034,30]
[341348382,1730818345710,-500.0,0.00034,30]
[341348383,1730818345725,-500.0,0.00034,30]
[341348384,1730818345743,-779.74769477,0.00034,30]
[341348385,1730818345758,-500.0,0.00034,30]
[341348386,1730818345773,-500.0,0.00034,30]
[341348387,1730818345787,-502.69956042,0.00034,30]
[341348388,1730818345802,-450.6,0.00034034,30]
[341348389,1730818346039,-152.0,0.00034212,11]
[341348390,1730818346050,-1649.88,0.00034246,120]
[341348391,1730818346059,-1000.0,0.00034247,2]
[341348392,1730818346069,-500.0,0.00034397,10]
[341348393,1730818346078,-500.0,0.00034397,10]
[341348394,1730818346087,-997.83827242,0.00034397,10]
[341348395,1730818346097,-500.0,0.00034397,10]
[341348396,1730818346105,-500.0,0.00034397,10]
[341348397,1730818346114,-500.0,0.00034397,10]
[341348398,1730818346124,-500.0,0.00034397,10]
[341348399,1730818346133,-503.38926865,0.00034397,10]
[341348400,1730818346142,-967.40433261,0.00034397,10]
[341348401,1730818346152,-500.0,0.00034397,10]
[341348402,1730818346161,-500.0,0.00034397,10]
[341348403,1730818346170,-500.0,0.00034397,10]
[341348404,1730818346179,-500.0,0.00034397,10]
[341348405,1730818346189,-500.0,0.00034397,10]
[341348406,1730818346198,-500.0,0.00034397,10]
[341348407,1730818346207,-500.0,0.00034397,10]
[341348408,1730818346217,-500.0,0.00034397,10]
[341348409,1730818346226,-500.0,0.00034397,10]
[341348410,1730818346235,-500.0,0.00034397,10]
[341348411,1730818346244,-500.0,0.00034397,10]
[341348412,1730818346254,-500.0,0.00034397,10]
[341348413,1730818346267,-500.0,0.00034397,10]
[341348414,1730818346276,-500.0,0.00034397,10]
[341348415,1730818346285,-500.0,0.00034397,10]
[341348416,1730818346295,-500.0,0.00034397,10]
[341348417,1730818346306,-500.0,0.00034397,10]
[341348418,1730818346316,-500.0,0.00034397,10]
[341348419,1730818346325,-500.0,0.00034397,10]
[341348420,1730818346338,-503.0098627,0.00034397,10]
[341348421,1730818346349,-207.60943387,0.00034397,10]
[341348422,1730818346359,-911.19,0.00034412,120]
[341348423,1730818346368,-1649.88,0.0003452,120]
[341348424,1730818346381,-1000.0,0.00034521,2]
[341348425,1730818346391,-1000.0,0.00034532,2]
[341348426,1730818346400,-150.0,0.00034548,10]
[341348427,1730818346410,-443.47548718,0.00034567,2]
[341348428,1730818346419,-500.0,0.0003458,120]
[341348429,1730818346428,-1000.0,0.00034588,30]
[341348430,1730818346437,-617.36,0.00034633,2]
[341348431,1730818346446,-683.26,0.000347,14]
[341348432,1730818346455,-2938.41,0.000347,7]
[341348433,1730818346465,-152.0,0.00034774,12]
[341348434,1730818346475,-1649.88,0.00034794,120]
[341348435,1730818346484,-1000.0,0.00034795,2]
[341348436,1730818346493,-999.0,0.00034849,120]
[341348437,1730818346503,-307.88554437,0.00034863,2]
[341348438,1730818346512,-3000.0,0.00034874,5]
[341348439,1730818346521,-1700.00000001,0.000349,20]
[341348440,1730818346531,-150.0,0.00035,14]
[341348441,1730818346540,-7773.97082358,0.00035,2]
[341348442,1730818346549,-9609.78498162,0.00035,2]
[341348443,1730818346558,-5049.49,0.00035,2]
[341348444,1730818346568,-597.8,0.00035,3]
[341348445,1730818346577,-3900.0,0.00035,7]
[341348446,1730818346587,-218.33445321,0.00035,30]
[341348447,1730818346597,-2310.55010311,0.00035,90]
[341348448,1730818346607,-162.0,0.00035,10]
[341348449,1730818346616,-502.0,0.00035,2]
[341348450,1730818346628,-150.0,0.00035,2]
[341348451,1730818346638,-151.0,0.00035014,120]
[341348452,1730818346647,-312.3,0.0003504,2]
[341348453,1730818346657,-1000.0,0.00035068,2]
[341348454,1730818346667,-1649.88,0.00035068,120]
[341348455,1730818346676,-23413.61928696,0.00035121,2]
[341348456,1730818346685,-249.61,0.00035213,120]
[341348457,1730818346695,-152.0,0.00035337,13]
[341348458,1730818346704,-1000.0,0.00035342,2]
[341348459,1730818346713,-1649.88,0.00035342,120]
[341348460,1730818346724,-996.44,0.0003558,7]
[341348461,1730818346733,-300.99195468,0.000356,2]
[341348462,1730818346744,-1000.0,0.00035616,2]
[341348463,1730818346754,-1000.0,0.00035616,2]
[341348464,1730818346764,-1649.88,0.00035616,120]
[341348465,1730818346774,-500.0,0.00035616,2]
[341348466,1730818346783,-500.0,0.00035616,2]
[341348467,1730818346792,-500.0,0.00035616,2]
[341348468,1730818346801,-500.0,0.00035616,2]
[341348469,1730818346811,-500.0,0.00035616,2]
[341348470,1730818346820,-500.0,0.00035616,2]
[341348471,1730818346829,-500.0,0.00035616,2]
[341348472,1730818346838,-500.0,0.00035616,2]
[341348473,1730818346847,-500.0,0.00035616,2]
[341348474,1730818346858,-500.0,0.00035616,2]
[341348475,1730818346870,-2019.5,0.00035616,120]
[341348476,1730818346884,-500.0,0.00035616,2]
[341348477,1730818346893,-1000.0,0.00035616,2]
[341348478,1730818346902,-1000.0,0.00035616,2]
[341348479,1730818346911,-1000.0,0.00035616,2]
[341348480,1730818346920,-1000.0,0.00035616,2]
[341348481,1730818346929,-1000.0,0.00035616,2]
[341348482,1730818346939,-1000.0,0.00035616,2]
[341348483,1730818346949,-1000.0,0.00035616,2]
[341348484,1730818346958,-435.90690541,0.00035616,2]
[341348485,1730818346968,-6554.77,0.00035616,120]
[341348486,1730818346978,-6554.77,0.00035616,120]
[341348487,1730818346987,-6554.77,0.00035616,120]
[341348488,1730818346997,-6554.77,0.00035616,120]
[341348489,1730818347006,-6554.77,0.00035616,120]
[341348490,1730818347015,-6554.77,0.00035616,120]
[341348491,1730818347025,-6554.77,0.00035616,120]
[341348492,1730818347034,-6554.77,0.00035616,120]
[341348493,1730818347045,-6554.77,0.00035616,120]
[341348494,1730818347054,-6554.77,0.00035616,120]
[341348495,1730818347063,-6554.77,0.00035616,120]
[341348496,1730818347074,-6554.77,0.00035616,120]
[341348497,1730818347084,-6554.77,0.00035616,120]
[341348498,1730818347093,-6554.77,0.00035616,120]
[341348499,1730818347102,-6554.77,0.00035616,120]
[341348500,1730818347111,-6554.77,0.00035616,120]
[341348501,1730818347120,-6554.77,0.00035616,120]
[341348502,1730818347134,-6554.77,0.00035616,120]
[341348503,1730818347143,-6554.77,0.00035616,120]
[341348504,1730818347153,-6554.77,0.00035616,120]
[341348505,1730818347162,-6554.77,0.00035616,120]
[341348506,1730818347172,-6554.77,0.00035616,120]
[341348507,1730818347181,-6554.77,0.00035616,120]
[341348508,1730818347191,-6554.87277172,0.00035616,120]
[341348509,1730818347200,-500.0,0.00035616,2]
[341348510,1730818347209,-500.0,0.00035616,2]
[341348511,1730818347219,-642.81515702,0.00035616,7]
[341348512,1730818347229,-153.0,0.00035616,2]
[341348513,1730818347239,-153.0,0.00035616,2]
[341348514,1730818347249,-153.0,0.00035616,2]
[341348515,1730818347260,-153.0,0.00035616,2]
[341348516,1730818347271,-153.0,0.00035616,2]
[341348517,1730818347284,-153.0,0.00035616,2]
[341348518,1730818347293,-153.0,0.00035616,2]
[341348519,1730818347302,-153.0,0.00035616,2]
[341348520,1730818347311,-153.0,0.00035616,2]
[341348521,1730818347321,-153.0,0.00035616,2]
[341348522,1730818347330,-153.0,0.00035616,2]
[341348523,1730818347340,-153.0,0.00035616,2]
[341348524,1730818347349,-153.0,0.00035616,2]
[341348525,1730818347358,-153.0,0.00035616,2]
[341348526,1730818347368,-153.0,0.00035616,2]
[341348527,1730818347380,-153.0,0.00035616,2]
[341348528,1730818347389,-153.0,0.00035616,2]
[341348529,1730818347398,-153.0,0.00035616,2]
[341348530,1730818347408,-153.0,0.00035616,2]
[341348531,1730818347417,-153.0,0.00035616,2]
[341348532,1730818347426,-153.0,0.00035616,2]
[341348533,1730818347436,-153.0,0.00035616,2]
[341348534,1730818347446,-153.0,0.00035616,2]
[341348535,1730818347455,-153.0,0.00035616,2]
[341348536,1730818347466,-153.0,0.00035616,2]
[341348537,1730818347475,-153.0,0.00035616,2]
[341348538,1730818347485,-153.0,0.00035616,2]
[341348539,1730818347494,-153.0,0.00035616,2]
[341348540,1730818347502,-153.0,0.00035616,2]
[341348541,1730818347512,-153.0,0.00035616,2]
[341348542,1730818347521,-153.0,0.00035616,2]
[341348543,1730818347529,-153.0,0.00035616,2]
[341348544,1730818347539,-153.0,0.00035616,2]
[341348545,1730818347550,-153.0,0.00035616,2]
[341348546,1730818347559,-153.0,0.00035616,2]
[341348547,1730818347570,-153.0,0.00035616,2]
[341348548,1730818347579,-153.0,0.00035616,2]
[341348549,1730818347589,-153.0,0.00035616,2]
[341348550,1730818347598,-153.0,0.00035616,2]
[341348551,1730818347607,-153.0,0.00035616,2]
[341348552,1730818347616,-153.0,0.00035616,2]
[341348553,1730818347627,-153.0,0.00035616,2]
[341348554,1730818347638,-153.0,0.00035616,2]
[341348555,1730818347647,-153.0,0.00035616,2]
[341348556,1730818347656,-153.0,0.00035616,2]
[341348557,1730818347666,-153.0,0.00035616,2]
[341348558,1730818347676,-153.0,0.00035616,2]
[341348559,1730818347686,-153.0,0.00035616,2]
[341348560,1730818347695,-153.0,0.00035616,2]
[341348561,1730818347704,-153.0,0.00035616,2]
[341348562,1730818347714,-153.0,0.00035616,2]
[341348563,1730818347723,-153.0,0.00035616,2]
[341348564,1730818347733,-153.0,0.00035616,2]
[341348565,1730818347743,-153.0,0.00035616,2]
[341348566,1730818347752,-153.0,0.00035616,2]
[341348567,1730818347762,-153.0,0.00035616,2]
[341348568,1730818347771,-153.0,0.00035616,2]
[341348569,1730818347780,-153.0,0.00035616,2]
[341348570,1730818347789,-153.0,0.00035616,2]
[341348571,1730818347799,-153.0,0.00035616,2]
[341348572,1730818347808,-153.0,0.00035616,2]
[341348573,1730818347817,-153.0,0.00035616,2]
[341348574,1730818347827,-153.0,0.00035616,2]
[341348575,1730818347836,-153.0,0.00035616,2]
[341348576,1730818347845,-153.0,0.00035616,2]
[341348577,1730818347853,-153.0,0.00035616,2]
[341348578,1730818347862,-153.0,0.00035616,2]
[341348579,1730818347874,-153.0,0.00035616,2]
[341348580,1730818347883,-153.0,0.00035616,2]
[341348581,1730818347893,-153.0,0.00035616,2]
[341348582,1730818347902,-153.0,0.00035616,2]
[341348583,1730818347911,-153.0,0.00035616,2]
[341348584,1730818347922,-153.0,0.00035616,2]
[341348585,1730818347931,-153.0,0.00035616,2]
[341348586,1730818347940,-153.0,0.00035616,2]
[341348587,1730818347949,-153.0,0.00035616,2]
[341348588,1730818347959,-153.0,0.00035616,2]
[341348589,1730818347968,-153.0,0.00035616,2]
[341348590,1730818347978,-153.0,0.00035616,2]
[341348591,1730818347987,-153.0,0.00035616,2]
[341348592,1730818347996,-153.0,0.00035616,2]
[341348593,1730818348005,-153.0,0.00035616,2]
[341348594,1730818348014,-153.0,0.00035616,2]
[341348595,1730818348023,-153.0,0.00035616,2]
[341348596,1730818348033,-153.0,0.00035616,2]
[341348597,1730818348042,-153.0,0.00035616,2]
[341348598,1730818348051,-153.0,0.00035616,2]
[341348599,1730818348062,-153.0,0.00035616,2]
[341348600,1730818348074,-153.0,0.00035616,2]
[341348601,1730818348084,-153.0,0.00035616,2]
[341348602,1730818348093,-153.0,0.00035616,2]
[341348603,1730818348102,-153.0,0.00035616,2]
[341348604,1730818348111,-153.0,0.00035616,2]
[341348605,1730818348120,-153.0,0.00035616,2]
[341348606,1730818348133,-500.0,0.00035616,13]
[341348607,1730818348143,-500.0,0.00035616,13]
[341348608,1730818348152,-500.0,0.00035616,13]
[341348609,1730818348162,-500.0,0.00035616,13]
[341348610,1730818348172,-500.0,0.00035616,13]
[341348611,1730818348181,-500.0,0.00035616,13]
[341348612,1730818348190,-500.0,0.00035616,13]
[341348613,1730818348199,-500.0,0.00035616,13]
[341348614,1730818348209,-500.0,0.00035616,13]
[341348615,1730818348218,-500.0,0.00035616,13]
[341348616,1730818348228,-500.0,0.00035616,13]
[341348617,1730818348237,-500.0,0.00035616,13]
[341348618,1730818348246,-500.0,0.00035616,13]
[341348619,1730818348257,-500.0,0.00035616,13]
[341348620,1730818348268,-500.0,0.00035616,13]
[341348621,1730818348279,-500.0,0.00035616,13]
[341348622,1730818348289,-500.0,0.00035616,13]
[341348623,1730818348299,-500.0,0.00035616,13]
[341348624,1730818348308,-500.0,0.00035616,13]
[341348625,1730818348318,-500.0,0.00035616,13]
[341348626,1730818348327,-500.0,0.00035616,13]
[341348627,1730818348337,-500.0,0.00035616,13]
[341348628,1730818348348,-500.0,0.00035616,13]
[341348629,1730818348358,-500.0,0.00035616,13]
[341348630,1730818348369,-199.07,0.00035616,2]
[341348631,1730818348385,-500.0,0.00035616,13]
[341348632,1730818348395,-500.0,0.00035616,13]
[341348633,1730818348404,-500.0,0.00035616,13]
[341348634,1730818348414,-500.0,0.00035616,13]
[341348635,1730818348424,-500.0,0.00035616,13]
[341348636,1730818348433,-500.0,0.00035616,13]
[341348637,1730818348443,-500.0,0.00035616,13]
[341348638,1730818348453,-500.0,0.00035616,13]
[341348639,1730818348463,-500.0,0.00035616,13]
[341348640,1730818348472,-500.0,0.00035616,13]
[341348641,1730818348482,-500.0,0.00035616,13]
[341348642,1730818348491,-500.0,0.00035616,13]
[341348643,1730818348501,-500.0,0.00035616,13]
[341348644,1730818348510,-500.0,0.00035616,13]
[341348645,1730818348519,-500.0,0.00035616,13]
[341348646,1730818348528,-500.0,0.00035616,13]